[Event "*** Titled Tuesday Blitz"]
[Site "Chess.com"]
[Date "2019.01.01"]
[Round "1"]
[White "pandamaster3000"]
[Black "Kirill_Klukin"]
[Result "0-1"]
[WhiteElo "2237"]
[BlackElo "2587"]
[TimeControl "180+2"]
[EndTime "13:07:04 PST"]
[Termination "Kirill_Klukin won by resignation"]

1. e4 {[%clk 0:03:01.9]} 1... c5 {[%clk 0:03:00.2]} 2. Nf3 {[%clk 0:03:02.4]}
2... Nc6 {[%clk 0:03:00.9]} 3. Bb5 {[%clk 0:03:02.7]} 3... d6 {[%clk 0:03:00.1]}
4. O-O {[%clk 0:03:01.5]} 4... Nf6 {[%clk 0:03:00]} 5. Re1 {[%clk 0:03:02.8]}
5... Bd7 {[%clk 0:03:00]} 6. d4 {[%clk 0:03:02.8]} 6... cxd4 {[%clk 0:03:00.5]}
7. Nxd4 {[%clk 0:03:03.7]} 7... g6 {[%clk 0:02:57.7]} 8. c4 {[%clk 0:02:56.3]}
8... Bg7 {[%clk 0:02:57.4]} 9. Nc3 {[%clk 0:02:55.8]} 9... O-O {[%clk
0:02:57.8]} 10. Be3 {[%clk 0:02:23.7]} 10... Ng4 {[%clk 0:02:54.7]} 11. Nxc6
{[%clk 0:02:02.8]} 11... bxc6 {[%clk 0:02:55.1]} 12. Ba4 {[%clk 0:02:01.1]}
12... Nxe3 {[%clk 0:02:55.8]} 13. Rxe3 {[%clk 0:02:03]} 13... Qb6 {[%clk
0:02:56.4]} 14. Bb3 {[%clk 0:01:55.7]} 14... a5 {[%clk 0:02:48]} 15. Rd3 {[%clk
0:01:43.5]} 15... Be6 {[%clk 0:02:41.3]} 16. Rc1 {[%clk 0:01:34]} 16... Bh6
{[%clk 0:02:23.7]} 17. Rc2 {[%clk 0:01:27]} 17... Qb4 {[%clk 0:02:21.8]} 18. Na4
{[%clk 0:01:13]} 18... c5 {[%clk 0:02:10]} 19. Nc3 {[%clk 0:00:53.3]} 19... a4
{[%clk 0:01:50.8]} 20. Nxa4 {[%clk 0:00:50]} 20... Rxa4 {[%clk 0:01:40.6]} 21.
Bxa4 {[%clk 0:00:46.6]} 21... Qxa4 {[%clk 0:01:41.3]} 22. b3 {[%clk 0:00:46.7]}
22... Qb4 {[%clk 0:01:41]} 23. Re2 {[%clk 0:00:39.9]} 23... Bg7 {[%clk
0:01:41.3]} 24. Qe1 {[%clk 0:00:27.7]} 24... Qa3 {[%clk 0:01:39.5]} 25. h3
{[%clk 0:00:21.4]} 25... Bxc4 {[%clk 0:01:40.1]} 26. bxc4 {[%clk 0:00:18.7]}
26... Qxd3 {[%clk 0:01:40.7]} 27. Re3 {[%clk 0:00:19.9]} 27... Qxc4 {[%clk
0:01:41.6]} 28. Qb1 {[%clk 0:00:18.1]} 28... Bd4 {[%clk 0:01:41.7]} 29. Rf3
{[%clk 0:00:18.2]} 29... Ra8 {[%clk 0:01:39.5]} 30. Qb3 {[%clk 0:00:18.7]} 30...
Qxb3 {[%clk 0:01:39.8]} 31. axb3 {[%clk 0:00:20.6]} 31... Ra2 {[%clk 0:01:40.4]}
32. g4 {[%clk 0:00:20.2]} 32... Rb2 {[%clk 0:01:41.4]} 33. Kg2 {[%clk
0:00:21.3]} 33... Kg7 {[%clk 0:01:42.2]} 34. h4 {[%clk 0:00:22.6]} 34... e6
{[%clk 0:01:41.9]} 35. Kg3 {[%clk 0:00:24]} 35... d5 {[%clk 0:01:39.2]} 36. exd5
{[%clk 0:00:24.7]} 36... exd5 {[%clk 0:01:40.5]} 37. h5 {[%clk 0:00:26.6]} 37...
c4 {[%clk 0:01:41]} 38. bxc4 {[%clk 0:00:26.9]} 38... dxc4 {[%clk 0:01:42.2]}
39. Kh4 {[%clk 0:00:28.1]} 39... c3 {[%clk 0:01:41.3]} 40. g5 {[%clk 0:00:29.4]}
40... gxh5 {[%clk 0:01:42.3]} 41. Kxh5 {[%clk 0:00:29.2]} 41... c2 {[%clk
0:01:43.7]} 42. g6 {[%clk 0:00:30.1]} 42... hxg6+ {[%clk 0:01:44]} 0-1

[Event "*** Titled Tuesday Blitz"]
[Site "Chess.com"]
[Date "2019.01.01"]
[Round "1"]
[White "MapleDanish"]
[Black "wannabe2700"]
[Result "0-1"]
[WhiteElo "2127"]
[BlackElo "2534"]
[TimeControl "180+2"]
[EndTime "13:07:11 PST"]
[Termination "wannabe2700 won by resignation"]

1. c4 {[%clk 0:03:01.9]} 1... e6 {[%clk 0:03:00.3]} 2. Nc3 {[%clk 0:03:03.2]}
2... d5 {[%clk 0:03:00.5]} 3. d4 {[%clk 0:03:04.6]} 3... Nf6 {[%clk 0:03:01.1]}
4. cxd5 {[%clk 0:03:06]} 4... exd5 {[%clk 0:03:00.6]} 5. Bg5 {[%clk 0:03:07.5]}
5... c6 {[%clk 0:02:59.9]} 6. e3 {[%clk 0:03:09]} 6... Bd6 {[%clk 0:02:59.5]} 7.
Bd3 {[%clk 0:03:06.1]} 7... Na6 {[%clk 0:02:55]} 8. Nge2 {[%clk 0:03:05.2]} 8...
Nb4 {[%clk 0:02:52.2]} 9. Bb1 {[%clk 0:03:05.4]} 9... a5 {[%clk 0:02:53]} 10.
O-O {[%clk 0:03:04.4]} 10... Bg4 {[%clk 0:02:52.7]} 11. f3 {[%clk 0:03:03.3]}
11... Bh5 {[%clk 0:02:53.7]} 12. Nf4 {[%clk 0:02:20.2]} 12... Bg6 {[%clk
0:02:50.4]} 13. Nxg6 {[%clk 0:02:19.5]} 13... hxg6 {[%clk 0:02:52.3]} 14. g3
{[%clk 0:01:51.5]} 14... Qc7 {[%clk 0:02:50.1]} 15. Rf2 {[%clk 0:01:37.7]} 15...
Nh5 {[%clk 0:02:15.4]} 16. Bf4 {[%clk 0:01:17.2]} 16... Nxf4 {[%clk 0:02:13.3]}
17. exf4 {[%clk 0:01:17.9]} 17... O-O-O {[%clk 0:02:13.3]} 18. a3 {[%clk
0:01:14.4]} 18... Na6 {[%clk 0:02:14]} 19. Bd3 {[%clk 0:01:10.6]} 19... Qb6
{[%clk 0:02:12.1]} 20. Bf1 {[%clk 0:01:05.5]} 20... Nc7 {[%clk 0:02:06.6]} 21.
b4 {[%clk 0:00:53]} 21... axb4 {[%clk 0:02:05.7]} 22. axb4 {[%clk 0:00:54.5]}
22... Qxb4 {[%clk 0:02:03.9]} 23. Qd3 {[%clk 0:00:48.5]} 23... Rde8 {[%clk
0:01:56.7]} 24. Na4 {[%clk 0:00:42.6]} 24... Nb5 {[%clk 0:01:54.5]} 25. Nb6+
{[%clk 0:00:27.9]} 25... Kc7 {[%clk 0:01:54.9]} 26. Nxd5+ {[%clk 0:00:29.2]}
26... cxd5 {[%clk 0:01:54.1]} 27. Qxb5 {[%clk 0:00:30.5]} 27... Qxb5 {[%clk
0:01:51.5]} 28. Bxb5 {[%clk 0:00:31.1]} 28... Re3 {[%clk 0:01:50.7]} 29. Rc2+
{[%clk 0:00:21.7]} 29... Kb6 {[%clk 0:01:51.9]} 30. Rb2 {[%clk 0:00:23]} 30...
Rb8 {[%clk 0:01:41.7]} 31. Bf1+ {[%clk 0:00:19.4]} 31... Kc7 {[%clk 0:01:41.8]}
32. Rc1+ {[%clk 0:00:17.8]} 32... Kd7 {[%clk 0:01:38.1]} 33. Rb6 {[%clk
0:00:18.6]} 33... Bc7 {[%clk 0:01:32.2]} 34. Bb5+ {[%clk 0:00:19.6]} 34... Kd8
{[%clk 0:01:30.4]} 35. Kf2 {[%clk 0:00:09]} 35... Re7 {[%clk 0:01:21.5]} 0-1

[Event "*** Titled Tuesday Blitz"]
[Site "Chess.com"]
[Date "2019.01.01"]
[Round "1"]
[White "Paralinch"]
[Black "fancyknightmaneuvers"]
[Result "1-0"]
[WhiteElo "2903"]
[BlackElo "2453"]
[TimeControl "180+2"]
[EndTime "13:07:12 PST"]
[Termination "Paralinch won by resignation"]

1. e4 {[%clk 0:03:01.9]} 1... c5 {[%clk 0:03:00.6]} 2. Nf3 {[%clk 0:02:58.3]}
2... e6 {[%clk 0:03:01.2]} 3. d4 {[%clk 0:02:59.2]} 3... cxd4 {[%clk 0:03:03.1]}
4. Nxd4 {[%clk 0:03:01]} 4... Nc6 {[%clk 0:03:03.4]} 5. Nc3 {[%clk 0:03:01.7]}
5... Qc7 {[%clk 0:03:04.8]} 6. Be2 {[%clk 0:03:01.9]} 6... a6 {[%clk 0:03:05]}
7. O-O {[%clk 0:02:59.5]} 7... Nf6 {[%clk 0:03:05.4]} 8. Be3 {[%clk 0:03:00.5]}
8... Bb4 {[%clk 0:03:04.8]} 9. Na4 {[%clk 0:03:00]} 9... O-O {[%clk 0:03:04.8]}
10. Nxc6 {[%clk 0:03:00.6]} 10... bxc6 {[%clk 0:03:05.2]} 11. Nb6 {[%clk
0:03:02.2]} 11... Rb8 {[%clk 0:03:06.5]} 12. Nxc8 {[%clk 0:03:03.7]} 12... Rfxc8
{[%clk 0:03:08.3]} 13. Bxa6 {[%clk 0:03:04.9]} 13... Rf8 {[%clk 0:03:09.8]} 14.
Bd3 {[%clk 0:03:05.1]} 14... Bd6 {[%clk 0:03:09.3]} 15. f4 {[%clk 0:03:01.6]}
15... e5 {[%clk 0:03:06.8]} 16. b3 {[%clk 0:03:00.1]} 16... exf4 {[%clk
0:03:03.5]} 17. Bd4 {[%clk 0:03:01.4]} 17... Be5 {[%clk 0:03:02.7]} 18. Bxe5
{[%clk 0:03:02.3]} 18... Qxe5 {[%clk 0:03:04.6]} 19. Qf3 {[%clk 0:03:03.6]}
19... Rbe8 {[%clk 0:02:49.1]} 20. Qxf4 {[%clk 0:02:49.7]} 20... Nxe4 {[%clk
0:02:48.6]} 21. Qxe5 {[%clk 0:02:43.5]} 21... Rxe5 {[%clk 0:02:48.3]} 22. Rfe1
{[%clk 0:02:42.3]} 22... f5 {[%clk 0:02:47.3]} 23. a4 {[%clk 0:02:43.2]} 23...
Ra8 {[%clk 0:02:42.6]} 24. b4 {[%clk 0:02:43.3]} 24... Ree8 {[%clk 0:02:31.8]}
25. a5 {[%clk 0:02:41.9]} 25... Kf7 {[%clk 0:02:30]} 26. c4 {[%clk 0:02:40.8]}
26... Kf6 {[%clk 0:02:25.7]} 27. a6 {[%clk 0:02:35.8]} 27... Reb8 {[%clk
0:02:20.1]} 28. b5 {[%clk 0:02:34.5]} 28... Nc5 {[%clk 0:02:15.8]} 29. Bf1
{[%clk 0:02:34.4]} 29... d5 {[%clk 0:01:48.2]} 30. bxc6 {[%clk 0:02:27.3]} 30...
dxc4 {[%clk 0:01:47.4]} 31. Bxc4 {[%clk 0:02:23.1]} 31... Rc8 {[%clk 0:01:45.7]}
32. a7 {[%clk 0:01:38.5]} 32... Rc7 {[%clk 0:01:41.4]} 33. Ra5 {[%clk
0:01:38.1]} 33... Ne4 {[%clk 0:01:36.3]} 34. Rea1 {[%clk 0:01:27.1]} 34... Nd6
{[%clk 0:01:27.8]} 35. Bd5 {[%clk 0:01:27.6]} 35... Nc8 {[%clk 0:01:22.9]} 36.
g4 {[%clk 0:01:21.6]} 36... fxg4 {[%clk 0:00:59.7]} 37. Rf1+ {[%clk 0:01:18.7]}
37... Ke7 {[%clk 0:00:59.4]} 38. Rf7+ {[%clk 0:01:15.5]} 38... Kd6 {[%clk
0:00:58.2]} 39. Rd7+ {[%clk 0:01:16]} 1-0

[Event "*** Titled Tuesday Blitz"]
[Site "Chess.com"]
[Date "2019.01.01"]
[Round "1"]
[White "PrinceMurad09"]
[Black "kayamarley"]
[Result "1-0"]
[WhiteElo "2491"]
[BlackElo "1940"]
[TimeControl "180+2"]
[EndTime "13:07:21 PST"]
[Termination "PrinceMurad09 won by resignation"]

1. e4 {[%clk 0:03:01.9]} 1... c5 {[%clk 0:03:00.6]} 2. Nf3 {[%clk 0:03:02.8]}
2... d6 {[%clk 0:03:01.8]} 3. d4 {[%clk 0:03:04.1]} 3... cxd4 {[%clk 0:03:03.2]}
4. Nxd4 {[%clk 0:03:06]} 4... Nf6 {[%clk 0:03:04.6]} 5. Nc3 {[%clk 0:03:07.5]}
5... a6 {[%clk 0:03:06.1]} 6. h3 {[%clk 0:03:07.3]} 6... e6 {[%clk 0:03:06.4]}
7. Be3 {[%clk 0:03:07.8]} 7... b5 {[%clk 0:03:07.3]} 8. a3 {[%clk 0:03:03.6]}
8... Bb7 {[%clk 0:03:08.3]} 9. Bd3 {[%clk 0:03:03.9]} 9... Nbd7 {[%clk
0:03:08.1]} 10. Nb3 {[%clk 0:02:56.8]} 10... Rc8 {[%clk 0:03:03.6]} 11. O-O
{[%clk 0:02:56.5]} 11... Rxc3 {[%clk 0:03:04.1]} 12. bxc3 {[%clk 0:02:57.2]}
12... Nxe4 {[%clk 0:03:04.6]} 13. Bxe4 {[%clk 0:02:50.9]} 13... Bxe4 {[%clk
0:03:04.7]} 14. a4 {[%clk 0:02:52.4]} 14... Qc7 {[%clk 0:03:02.5]} 15. axb5
{[%clk 0:02:51]} 15... axb5 {[%clk 0:03:03.3]} 16. Qd2 {[%clk 0:02:47.8]} 16...
Be7 {[%clk 0:03:03]} 17. Ra7 {[%clk 0:02:48.3]} 17... Qc4 {[%clk 0:02:23.5]} 18.
f3 {[%clk 0:02:33.7]} 18... Bd5 {[%clk 0:02:24.2]} 19. Rfa1 {[%clk 0:02:14.7]}
19... Qc8 {[%clk 0:02:04.7]} 20. Nd4 {[%clk 0:02:03.4]} 20... O-O {[%clk
0:00:57.4]} 21. Nxb5 {[%clk 0:02:02.7]} 21... Rd8 {[%clk 0:00:48.8]} 22. Nc7
{[%clk 0:01:54.7]} 22... Bb7 {[%clk 0:00:37.1]} 23. Rb1 {[%clk 0:01:44.5]} 23...
Qxc7 {[%clk 0:00:31.8]} 24. Rbxb7 {[%clk 0:01:43.9]} 24... Qc6 {[%clk
0:00:33.2]} 25. Rc7 {[%clk 0:01:32.3]} 25... Qb5 {[%clk 0:00:30.5]} 26. c4
{[%clk 0:01:33.6]} 26... Qb1+ {[%clk 0:00:31]} 27. Qc1 {[%clk 0:01:34.9]} 27...
Qxc1+ {[%clk 0:00:24.1]} 28. Bxc1 {[%clk 0:01:36.8]} 28... d5 {[%clk 0:00:24.4]}
29. Rxd7 {[%clk 0:01:37.8]} 29... Rxd7 {[%clk 0:00:09.2]} 30. Rxd7 {[%clk
0:01:36.8]} 30... Bc5+ {[%clk 0:00:11.1]} 31. Kf1 {[%clk 0:01:38]} 31... g6
{[%clk 0:00:10.4]} 32. Bh6 {[%clk 0:01:37.2]} 32... f5 {[%clk 0:00:09.7]} 33.
Rg7+ {[%clk 0:01:37.1]} 33... Kh8 {[%clk 0:00:10.3]} 34. cxd5 {[%clk 0:01:36.7]}
34... exd5 {[%clk 0:00:10.9]} 35. Rd7 {[%clk 0:01:37.2]} 35... Kg8 {[%clk
0:00:11.9]} 36. Rxd5 {[%clk 0:01:36.5]} 36... Be7 {[%clk 0:00:12.6]} 37. Rd7
{[%clk 0:01:36.7]} 37... Ba3 {[%clk 0:00:11.2]} 38. c4 {[%clk 0:01:37.1]} 38...
f4 {[%clk 0:00:10.4]} 39. Bxf4 {[%clk 0:01:37.3]} 39... Kf8 {[%clk 0:00:10.5]}
40. Bg5 {[%clk 0:01:36.9]} 40... Ke8 {[%clk 0:00:11.5]} 41. Rxh7 {[%clk
0:01:37.9]} 1-0

[Event "*** Titled Tuesday Blitz"]
[Site "Chess.com"]
[Date "2019.01.01"]
[Round "1"]
[White "JozefKneht"]
[Black "Karina_Oparina"]
[Result "1/2-1/2"]
[WhiteElo "2494"]
[BlackElo "2063"]
[TimeControl "180+2"]
[EndTime "13:07:23 PST"]
[Termination "Game drawn by repetition"]

1. e4 {[%clk 0:02:59.6]} 1... c6 {[%clk 0:03:00.7]} 2. d4 {[%clk 0:02:59.3]}
2... d5 {[%clk 0:03:00.9]} 3. Nc3 {[%clk 0:03:01.2]} 3... dxe4 {[%clk
0:03:01.6]} 4. Nxe4 {[%clk 0:03:03.1]} 4... Nf6 {[%clk 0:03:00.6]} 5. Nxf6+
{[%clk 0:03:03.3]} 5... exf6 {[%clk 0:03:01.2]} 6. Bc4 {[%clk 0:03:03.5]} 6...
Bd6 {[%clk 0:03:01.1]} 7. Qe2+ {[%clk 0:03:04.4]} 7... Qe7 {[%clk 0:03:01.7]} 8.
Qxe7+ {[%clk 0:03:03.9]} 8... Kxe7 {[%clk 0:03:02.6]} 9. Ne2 {[%clk 0:03:04.1]}
9... Bf5 {[%clk 0:03:01.6]} 10. c3 {[%clk 0:03:00.9]} 10... b5 {[%clk
0:02:56.5]} 11. Bb3 {[%clk 0:03:00.9]} 11... Nd7 {[%clk 0:02:57.2]} 12. Bf4
{[%clk 0:03:00.9]} 12... Bxf4 {[%clk 0:02:55.6]} 13. Nxf4 {[%clk 0:03:01.3]}
13... Rhc8 {[%clk 0:02:52.6]} 14. O-O-O {[%clk 0:03:00.7]} 14... Nb6 {[%clk
0:02:48.1]} 15. Rhe1+ {[%clk 0:03:00.7]} 15... Kf8 {[%clk 0:02:48.9]} 16. Bc2
{[%clk 0:02:51]} 16... Bxc2 {[%clk 0:02:46.2]} 17. Kxc2 {[%clk 0:02:52.9]} 17...
a5 {[%clk 0:02:45.1]} 18. Nd3 {[%clk 0:02:52.9]} 18... a4 {[%clk 0:02:41.6]} 19.
Nc5 {[%clk 0:02:52.6]} 19... Ra7 {[%clk 0:02:42.1]} 20. Re2 {[%clk 0:02:51.6]}
20... Re7 {[%clk 0:02:38.2]} 21. Rde1 {[%clk 0:02:51.3]} 21... Rxe2+ {[%clk
0:02:37.6]} 22. Rxe2 {[%clk 0:02:51.9]} 22... f5 {[%clk 0:02:37.8]} 23. Kd3
{[%clk 0:02:43.7]} 23... g5 {[%clk 0:02:33.7]} 24. Re5 {[%clk 0:02:42.3]} 24...
f6 {[%clk 0:02:31.6]} 25. Rxf5 {[%clk 0:02:42.1]} 25... Ke7 {[%clk 0:02:32.1]}
26. Rf3 {[%clk 0:02:30.4]} 26... Nd5 {[%clk 0:02:27.1]} 27. g3 {[%clk
0:02:30.6]} 27... h5 {[%clk 0:02:18.7]} 28. Kd2 {[%clk 0:02:28.9]} 28... Rh8
{[%clk 0:02:14.4]} 29. b3 {[%clk 0:02:25.6]} 29... axb3 {[%clk 0:02:12.9]} 30.
axb3 {[%clk 0:02:27.5]} 30... Ra8 {[%clk 0:02:11.6]} 31. c4 {[%clk 0:02:28.6]}
31... Ra2+ {[%clk 0:02:10.9]} 32. Ke1 {[%clk 0:02:29.4]} 32... bxc4 {[%clk
0:02:09.4]} 33. bxc4 {[%clk 0:02:29.5]} 33... Nb4 {[%clk 0:02:08]} 34. Re3+
{[%clk 0:02:26.1]} 34... Kf7 {[%clk 0:02:06.8]} 35. Kf1 {[%clk 0:02:26.6]} 35...
Nc2 {[%clk 0:02:03.1]} 36. Rd3 {[%clk 0:02:25.7]} 36... Nb4 {[%clk 0:02:03.5]}
37. Rb3 {[%clk 0:02:23.7]} 37... Ra1+ {[%clk 0:01:57]} 38. Kg2 {[%clk
0:02:23.7]} 38... Nc2 {[%clk 0:01:55.7]} 39. d5 {[%clk 0:02:22.5]} 39... g4
{[%clk 0:01:45.7]} 40. f4 {[%clk 0:02:19]} 40... Ra2 {[%clk 0:01:20.2]} 41. Rb7+
{[%clk 0:02:06]} 41... Kg6 {[%clk 0:01:19]} 42. d6 {[%clk 0:02:06.4]} 42... Ne3+
{[%clk 0:01:13.1]} 43. Kg1 {[%clk 0:02:07.5]} 43... Rg2+ {[%clk 0:01:12.4]} 44.
Kh1 {[%clk 0:02:08.2]} 44... Rd2 {[%clk 0:01:10.8]} 45. Kg1 {[%clk 0:02:06.7]}
45... Rg2+ {[%clk 0:01:09.4]} 46. Kh1 {[%clk 0:02:07.3]} 46... Rd2 {[%clk
0:01:01.4]} 47. Kg1 {[%clk 0:02:07.6]} 47... Rg2+ {[%clk 0:01:00.4]} 48. Kh1
{[%clk 0:02:07.9]} 48... Rd2 {[%clk 0:00:59]} 49. Kg1 {[%clk 0:02:07]} 49...
Rg2+ {[%clk 0:00:59.4]} 50. Kh1 {[%clk 0:02:07.4]} 50... Rd2 {[%clk 0:00:58.1]}
51. Kg1 {[%clk 0:02:05.5]} 51... Rg2+ {[%clk 0:00:58.2]} 1/2-1/2

[Event "*** Titled Tuesday Blitz"]
[Site "Chess.com"]
[Date "2019.01.01"]
[Round "1"]
[White "jk13"]
[Black "JoakimVonAnd"]
[Result "1-0"]
[WhiteElo "2703"]
[BlackElo "2349"]
[TimeControl "180+2"]
[EndTime "13:07:24 PST"]
[Termination "jk13 won by resignation"]

1. e4 {[%clk 0:03:00.1]} 1... c6 {[%clk 0:03:01]} 2. d3 {[%clk 0:02:59.9]} 2...
d5 {[%clk 0:03:02.9]} 3. Qe2 {[%clk 0:03:01.3]} 3... Nf6 {[%clk 0:03:02.7]} 4.
Nf3 {[%clk 0:03:02.9]} 4... e6 {[%clk 0:03:03]} 5. g3 {[%clk 0:03:04.2]} 5...
Nbd7 {[%clk 0:03:03]} 6. Bg2 {[%clk 0:03:05.8]} 6... Be7 {[%clk 0:03:04.1]} 7.
O-O {[%clk 0:03:07.4]} 7... O-O {[%clk 0:03:05.3]} 8. e5 {[%clk 0:03:07.4]} 8...
Ne8 {[%clk 0:03:05.9]} 9. c4 {[%clk 0:03:09.3]} 9... f6 {[%clk 0:03:04.3]} 10.
exf6 {[%clk 0:03:04.3]} 10... Ndxf6 {[%clk 0:03:05]} 11. Ne5 {[%clk 0:03:05.4]}
11... Nd6 {[%clk 0:03:05.1]} 12. Nc3 {[%clk 0:03:05.4]} 12... Nf5 {[%clk
0:02:56.1]} 13. Bf4 {[%clk 0:03:05.6]} 13... Bd6 {[%clk 0:02:47.6]} 14. Rfe1
{[%clk 0:03:06]} 14... Nd4 {[%clk 0:02:45.2]} 15. Qd1 {[%clk 0:03:06.7]} 15...
Qc7 {[%clk 0:02:37.1]} 16. Rc1 {[%clk 0:03:04.1]} 16... g5 {[%clk 0:02:33.2]}
17. Bxg5 {[%clk 0:02:45.3]} 17... Bxe5 {[%clk 0:02:33.8]} 18. cxd5 {[%clk
0:02:39.5]} 18... exd5 {[%clk 0:02:15.6]} 19. Nxd5 {[%clk 0:02:39.9]} 19... Nxd5
{[%clk 0:02:13.7]} 20. Bxd5+ {[%clk 0:02:41.8]} 20... Kh8 {[%clk 0:02:14.3]} 21.
Qh5 {[%clk 0:02:25.6]} 21... Qg7 {[%clk 0:02:06.7]} 22. Bh6 {[%clk 0:02:17.3]}
22... cxd5 {[%clk 0:01:33.6]} 23. Bxg7+ {[%clk 0:02:14.1]} 23... Bxg7 {[%clk
0:01:35.3]} 24. f4 {[%clk 0:02:14.8]} 24... Bf5 {[%clk 0:01:34]} 25. Rc7 {[%clk
0:02:11]} 25... Bg6 {[%clk 0:01:29.1]} 26. Qg4 {[%clk 0:02:03.4]} 26... Rad8
{[%clk 0:01:25.5]} 27. Ree7 {[%clk 0:02:01.9]} 27... Bf6 {[%clk 0:01:20.7]} 28.
Re1 {[%clk 0:01:47.3]} 28... Bf5 {[%clk 0:01:13.7]} 29. Qh5 {[%clk 0:01:44.2]}
29... Bg6 {[%clk 0:01:14.7]} 30. Qd1 {[%clk 0:01:45.2]} 30... Rde8 {[%clk
0:01:14]} 31. Rxe8 {[%clk 0:01:29.9]} 31... Rxe8 {[%clk 0:01:14.8]} 32. Kf2
{[%clk 0:01:26]} 32... Re2+ {[%clk 0:01:09.5]} 33. Qxe2 {[%clk 0:01:27.4]} 33...
Nxe2 {[%clk 0:01:09.7]} 34. Kxe2 {[%clk 0:01:29.3]} 34... Bxb2 {[%clk
0:01:10.3]} 35. Rxb7 {[%clk 0:01:19.9]} 35... Bh5+ {[%clk 0:01:08.7]} 36. Ke3
{[%clk 0:01:17.7]} 36... d4+ {[%clk 0:01:07.5]} 37. Ke4 {[%clk 0:01:13.9]} 37...
Bc3 {[%clk 0:01:06.7]} 38. Rxa7 {[%clk 0:01:11.6]} 38... Kg8 {[%clk 0:01:06]}
39. Rc7 {[%clk 0:01:07.1]} 39... Bf7 {[%clk 0:01:04.5]} 40. a4 {[%clk
0:01:06.6]} 40... Kg7 {[%clk 0:01:05.6]} 41. Ke5 {[%clk 0:01:03.6]} 41... Kf8
{[%clk 0:00:58]} 42. Kf6 {[%clk 0:01:02.6]} 42... Be8 {[%clk 0:00:59.3]} 43. Rc8
{[%clk 0:01:03.4]} 43... Bb4 {[%clk 0:00:59.1]} 44. Ke6 {[%clk 0:01:02.9]} 44...
Ba5 {[%clk 0:00:57.6]} 45. f5 {[%clk 0:01:02.5]} 45... Bb4 {[%clk 0:00:58.1]}
46. f6 {[%clk 0:01:03.6]} 1-0

[Event "*** Titled Tuesday Blitz"]
[Site "Chess.com"]
[Date "2019.01.01"]
[Round "1"]
[White "GremioPrudente"]
[Black "IakovUlivar"]
[Result "0-1"]
[WhiteElo "2019"]
[BlackElo "2502"]
[TimeControl "180+2"]
[EndTime "13:07:24 PST"]
[Termination "IakovUlivar won on time"]

1. Nf3 {[%clk 0:03:01.6]} 1... Nf6 {[%clk 0:03:00.3]} 2. d4 {[%clk 0:02:59.9]}
2... e6 {[%clk 0:03:00.7]} 3. c4 {[%clk 0:03:00.3]} 3... d5 {[%clk 0:02:59.3]}
4. Bg5 {[%clk 0:02:59.1]} 4... Be7 {[%clk 0:02:59.1]} 5. e3 {[%clk 0:02:59.3]}
5... h6 {[%clk 0:02:58.4]} 6. Bh4 {[%clk 0:02:59.6]} 6... O-O {[%clk 0:02:58.7]}
7. Nc3 {[%clk 0:03:00.5]} 7... Nbd7 {[%clk 0:02:57.7]} 8. Rc1 {[%clk 0:02:49.3]}
8... c5 {[%clk 0:02:56.6]} 9. cxd5 {[%clk 0:02:45.7]} 9... Nxd5 {[%clk 0:02:57]}
10. Bxe7 {[%clk 0:02:39]} 10... Nxe7 {[%clk 0:02:58.9]} 11. Be2 {[%clk
0:02:23.6]} 11... b6 {[%clk 0:02:58.3]} 12. O-O {[%clk 0:02:19.8]} 12... Bb7
{[%clk 0:02:59.1]} 13. Qa4 {[%clk 0:02:15.1]} 13... Nd5 {[%clk 0:02:50.9]} 14.
Rfd1 {[%clk 0:01:54.2]} 14... Qe7 {[%clk 0:02:45.2]} 15. Ba6 {[%clk 0:01:49]}
15... Nxc3 {[%clk 0:02:32]} 16. bxc3 {[%clk 0:01:35.2]} 16... Bxf3 {[%clk
0:01:55.8]} 17. gxf3 {[%clk 0:01:35.6]} 17... Nf6 {[%clk 0:01:27.4]} 18. Bf1
{[%clk 0:01:20.2]} 18... Rfd8 {[%clk 0:01:23.6]} 19. Bg2 {[%clk 0:01:20.7]}
19... Rac8 {[%clk 0:01:20]} 20. Rd2 {[%clk 0:01:13.2]} 20... Nd5 {[%clk
0:01:17.1]} 21. Rdc2 {[%clk 0:00:42.4]} 21... Rc7 {[%clk 0:01:14.2]} 22. f4
{[%clk 0:00:42.6]} 22... Rdc8 {[%clk 0:01:09.6]} 23. Bxd5 {[%clk 0:00:40.3]}
23... exd5 {[%clk 0:01:11.5]} 24. Qa3 {[%clk 0:00:39.2]} 24... Qe4 {[%clk
0:01:07.3]} 25. Qa4 {[%clk 0:00:21.2]} 25... Rc6 {[%clk 0:00:48]} 26. Kf1 {[%clk
0:00:16]} 26... Qd3+ {[%clk 0:00:43.5]} 27. Ke1 {[%clk 0:00:10.7]} 27... Rg6
{[%clk 0:00:42.8]} 0-1